[Event "*** Titled Tuesday Blitz"]
[Site "Chess.com"]
[Date "2018.12.04"]
[Round "3"]
[White "AsaHoffmann"]
[Black "mjray79"]
[Result "1-0"]
[WhiteElo "2121"]
[BlackElo "2151"]
[TimeControl "180+2"]
[EndTime "13:36:19 PST"]
[Termination "AsaHoffmann won on time"]

1. d4 {[%clk 0:03:01.9]} 1... Nf6 {[%clk 0:02:59.3]} 2. Bg5 {[%clk 0:03:01.3]}
2... Ne4 {[%clk 0:02:58.3]} 3. Bf4 {[%clk 0:03:01.6]} 3... d5 {[%clk 0:02:58.4]}
4. f3 {[%clk 0:03:02]} 4... Nf6 {[%clk 0:02:57.7]} 5. e4 {[%clk 0:03:02.3]} 5...
dxe4 {[%clk 0:02:50.4]} 6. Nc3 {[%clk 0:03:02.7]} 6... exf3 {[%clk 0:02:43.8]}
7. Nxf3 {[%clk 0:03:02.8]} 7... e6 {[%clk 0:02:39.9]} 8. Bc4 {[%clk 0:03:00.5]}
8... Be7 {[%clk 0:02:39.2]} 9. Qe2 {[%clk 0:03:01]} 9... c5 {[%clk 0:02:35]} 10.
O-O-O {[%clk 0:02:56.6]} 10... cxd4 {[%clk 0:02:27.9]} 11. Rxd4 {[%clk
0:02:55.8]} 11... Bd7 {[%clk 0:02:28.6]} 12. Rhd1 {[%clk 0:02:53.6]} 12... Nc6
{[%clk 0:02:27.6]} 13. R4d2 {[%clk 0:02:45.2]} 13... Qb6 {[%clk 0:02:16.7]} 14.
Ne5 {[%clk 0:02:40.7]} 14... Nxe5 {[%clk 0:02:06.1]} 15. Bxe5 {[%clk 0:02:41]}
15... O-O-O {[%clk 0:02:05.2]} 16. a3 {[%clk 0:02:28]} 16... Bc6 {[%clk
0:01:50.6]} 17. Bg3 {[%clk 0:02:25.3]} 17... Qa5 {[%clk 0:01:43.7]} 18. Bxe6+
{[%clk 0:02:21.2]} 18... fxe6 {[%clk 0:01:38.6]} 19. Qxe6+ {[%clk 0:02:20.7]}
19... Nd7 {[%clk 0:00:58.3]} 20. Qxe7 {[%clk 0:02:18.3]} 20... b6 {[%clk
0:00:33.9]} 21. Qd6 {[%clk 0:02:12.3]} 21... Kb7 {[%clk 0:00:33.4]} 22. Qc7+
{[%clk 0:02:12.3]} 22... Ka6 {[%clk 0:00:27.7]} 23. Qxc6 {[%clk 0:02:11.1]}
23... Qg5 {[%clk 0:00:18.3]} 24. Kb1 {[%clk 0:02:02.4]} 24... Nc5 {[%clk
0:00:17.1]} 25. Qb5+ {[%clk 0:01:59.1]} 25... Kb7 {[%clk 0:00:16.8]} 26. Rd5
{[%clk 0:01:50.4]} 26... Rxd5 {[%clk 0:00:12.8]} 27. Rxd5 {[%clk 0:01:50.2]}
27... Qe3 {[%clk 0:00:13.3]} 28. Qf1 {[%clk 0:01:33]} 28... Re8 {[%clk
0:00:12.4]} 29. Rd1 {[%clk 0:01:26.2]} 29... Qg5 {[%clk 0:00:07.4]} 30. Qf4
{[%clk 0:01:23.7]} 30... Qxf4 {[%clk 0:00:04.6]} 31. Bxf4 {[%clk 0:01:24.2]}
31... Re2 {[%clk 0:00:05.3]} 32. b4 {[%clk 0:01:21.7]} 32... Ne6 {[%clk
0:00:02.6]} 33. Bg3 {[%clk 0:01:19.2]} 33... Rxg2 {[%clk 0:00:02.5]} 34. Rd7+
{[%clk 0:01:18.6]} 34... Kc6 {[%clk 0:00:02.5]} 35. Rd6+ {[%clk 0:01:16.4]}
35... Kb7 {[%clk 0:00:02.1]} 36. Rxe6 {[%clk 0:01:17.3]} 1-0

[Event "*** Titled Tuesday Blitz"]
[Site "Chess.com"]
[Date "2018.12.04"]
[Round "3"]
[White "Thjop"]
[Black "biostatistician"]
[Result "1/2-1/2"]
[WhiteElo "2660"]
[BlackElo "2452"]
[TimeControl "180+2"]
[EndTime "13:36:34 PST"]
[Termination "Game drawn by agreement"]

1. e4 {[%clk 0:03:01.9]} 1... e6 {[%clk 0:03:00.2]} 2. d4 {[%clk 0:03:02.3]}
2... d5 {[%clk 0:03:02.1]} 3. Nd2 {[%clk 0:03:03.9]} 3... Nc6 {[%clk 0:03:03.5]}
4. Ngf3 {[%clk 0:03:04.1]} 4... Nf6 {[%clk 0:03:05]} 5. e5 {[%clk 0:03:04.5]}
5... Ne4 {[%clk 0:03:06.7]} 6. Bd3 {[%clk 0:03:01.6]} 6... Nxd2 {[%clk
0:03:07.7]} 7. Bxd2 {[%clk 0:03:02.2]} 7... Nb4 {[%clk 0:03:09.6]} 8. Bxb4
{[%clk 0:02:53.5]} 8... Bxb4+ {[%clk 0:03:11.5]} 9. c3 {[%clk 0:02:55]} 9... Be7
{[%clk 0:03:13]} 10. h4 {[%clk 0:02:46.2]} 10... c5 {[%clk 0:03:12]} 11. a3
{[%clk 0:02:45.5]} 11... Bd7 {[%clk 0:03:11.4]} 12. g3 {[%clk 0:02:29]} 12...
Qb6 {[%clk 0:03:10.9]} 13. Qd2 {[%clk 0:02:19.3]} 13... Bb5 {[%clk 0:03:07]} 14.
Bxb5+ {[%clk 0:02:16.4]} 14... Qxb5 {[%clk 0:03:08.9]} 15. Qe2 {[%clk
0:02:16.7]} 15... Qxe2+ {[%clk 0:03:06.9]} 16. Kxe2 {[%clk 0:02:18.6]} 16... Kd7
{[%clk 0:03:07.4]} 17. b4 {[%clk 0:02:09]} 17... cxd4 {[%clk 0:02:55.6]} 18.
cxd4 {[%clk 0:02:08.5]} 18... Rhc8 {[%clk 0:02:53.7]} 19. Kd3 {[%clk 0:02:03.8]}
19... a5 {[%clk 0:02:53]} 20. bxa5 {[%clk 0:01:54.7]} 20... Rxa5 {[%clk
0:02:52.2]} 21. Rhb1 {[%clk 0:01:55.5]} 21... b5 {[%clk 0:02:42.5]} 22. Ne1
{[%clk 0:01:10.9]} 22... Bxa3 {[%clk 0:02:36.7]} 23. Nc2 {[%clk 0:01:11.7]}
23... b4 {[%clk 0:02:37.8]} 24. Rb3 {[%clk 0:01:09.3]} 24... h5 {[%clk
0:01:08.6]} 25. Nxa3 {[%clk 0:01:07.6]} 25... bxa3 {[%clk 0:01:08.3]} 26. Rbxa3
{[%clk 0:01:04.8]} 26... Rxa3+ {[%clk 0:01:09.7]} 27. Rxa3 {[%clk 0:01:06.7]}
27... Rc1 {[%clk 0:01:11]} 28. Ra7+ {[%clk 0:01:02.2]} 28... Ke8 {[%clk
0:01:12.3]} 29. Ke3 {[%clk 0:01:00.1]} 29... Rc2 {[%clk 0:01:12.6]} 30. Ra8+
{[%clk 0:00:58.1]} 30... Ke7 {[%clk 0:01:13.7]} 31. Rh8 {[%clk 0:00:58.6]} 31...
g6 {[%clk 0:01:14.4]} 32. Ra8 {[%clk 0:00:59.1]} 32... Rb2 {[%clk 0:01:15.6]}
33. Ra7+ {[%clk 0:00:57.1]} 33... Kf8 {[%clk 0:01:16.9]} 34. f3 {[%clk
0:00:44.1]} 34... Rh2 {[%clk 0:01:16.3]} 35. Kf4 {[%clk 0:00:41.3]} 35... Kg7
{[%clk 0:01:17.4]} 36. Rb7 {[%clk 0:00:40.2]} 36... Rd2 {[%clk 0:01:16.1]} 37.
Ke3 {[%clk 0:00:39.7]} 37... Rg2 {[%clk 0:01:17.4]} 38. Kf4 {[%clk 0:00:38.8]}
38... Rd2 {[%clk 0:01:18.9]} 39. Rb4 {[%clk 0:00:40.2]} 39... Rd1 {[%clk
0:01:19.6]} 40. Kg5 {[%clk 0:00:34.4]} 40... Rf1 {[%clk 0:01:19.1]} 41. Kf4
{[%clk 0:00:34.1]} 41... Rd1 {[%clk 0:01:20.1]} 42. Ke3 {[%clk 0:00:32.8]} 42...
Re1+ {[%clk 0:01:20.7]} 43. Kf2 {[%clk 0:00:32.7]} 43... Rd1 {[%clk 0:01:22.2]}
44. Ke2 {[%clk 0:00:33.9]} 44... Rg1 {[%clk 0:01:23.5]} 45. Kf2 {[%clk 0:00:34]}
45... Rd1 {[%clk 0:01:25.1]} 46. Ke3 {[%clk 0:00:33.4]} 1/2-1/2

[Event "*** Titled Tuesday Blitz"]
[Site "Chess.com"]
[Date "2018.12.04"]
[Round "3"]
[White "TheMagician"]
[Black "chess4life23"]
[Result "1-0"]
[WhiteElo "2262"]
[BlackElo "2398"]
[TimeControl "180+2"]
[EndTime "13:36:38 PST"]
[Termination "TheMagician won by resignation"]

1. d4 {[%clk 0:03:01.9]} 1... Nf6 {[%clk 0:03:00.8]} 2. Nc3 {[%clk 0:03:02.3]}
2... d5 {[%clk 0:03:01.1]} 3. Bg5 {[%clk 0:03:02.6]} 3... Nbd7 {[%clk
0:03:01.7]} 4. Qd3 {[%clk 0:03:01.6]} 4... h6 {[%clk 0:03:01.9]} 5. Bxf6 {[%clk
0:02:58.4]} 5... Nxf6 {[%clk 0:03:00.5]} 6. e4 {[%clk 0:02:59.5]} 6... dxe4
{[%clk 0:02:47.8]} 7. Nxe4 {[%clk 0:03:00.3]} 7... Nxe4 {[%clk 0:02:46.4]} 8.
Qxe4 {[%clk 0:03:00.8]} 8... c6 {[%clk 0:02:34]} 9. Bc4 {[%clk 0:03:01]} 9...
Qa5+ {[%clk 0:02:33.5]} 10. c3 {[%clk 0:03:00.8]} 10... Bf5 {[%clk 0:02:34]} 11.
Qf3 {[%clk 0:02:56.6]} 11... e6 {[%clk 0:02:35.3]} 12. Ne2 {[%clk 0:02:55.8]}
12... Bd6 {[%clk 0:02:35.9]} 13. Ng3 {[%clk 0:02:56.4]} 13... Bg6 {[%clk
0:02:33.7]} 14. Ne4 {[%clk 0:02:54.3]} 14... Be7 {[%clk 0:02:32.6]} 15. O-O
{[%clk 0:02:52.5]} 15... O-O {[%clk 0:02:32.8]} 16. Rfe1 {[%clk 0:02:52.7]}
16... Rad8 {[%clk 0:02:29.9]} 17. Bb3 {[%clk 0:02:50.1]} 17... Rfe8 {[%clk
0:02:18.8]} 18. Nd2 {[%clk 0:02:47]} 18... Qg5 {[%clk 0:02:14.9]} 19. Nc4 {[%clk
0:02:43.4]} 19... Bf6 {[%clk 0:02:06.6]} 20. Ne5 {[%clk 0:02:43.3]} 20... Bh5
{[%clk 0:02:04.9]} 21. Qg3 {[%clk 0:02:36.5]} 21... Qd2 {[%clk 0:01:36.1]} 22.
Nc4 {[%clk 0:02:17.5]} 22... Qg5 {[%clk 0:01:31.3]} 23. Qxg5 {[%clk 0:02:17.9]}
23... Bxg5 {[%clk 0:01:26.4]} 24. h3 {[%clk 0:02:16.1]} 24... Bg6 {[%clk
0:01:25.8]} 25. Ne5 {[%clk 0:02:17]} 25... Bh7 {[%clk 0:01:22.1]} 26. g3 {[%clk
0:02:15.6]} 26... Be7 {[%clk 0:01:22.1]} 27. Re2 {[%clk 0:01:44.4]} 27... Bd6
{[%clk 0:01:20.9]} 28. Rae1 {[%clk 0:01:43.7]} 28... Kf8 {[%clk 0:01:17.4]} 29.
f4 {[%clk 0:01:43.3]} 29... c5 {[%clk 0:00:57.2]} 30. dxc5 {[%clk 0:01:43.1]}
30... Bxc5+ {[%clk 0:00:56.3]} 31. Kh2 {[%clk 0:01:44.5]} 31... Re7 {[%clk
0:00:43.5]} 32. Bc2 {[%clk 0:01:43.7]} 32... Bxc2 {[%clk 0:00:40.7]} 33. Rxc2
{[%clk 0:01:44.5]} 33... Rc7 {[%clk 0:00:40.7]} 34. Kg2 {[%clk 0:01:44.6]} 34...
f6 {[%clk 0:00:34.7]} 35. Nf3 {[%clk 0:01:41.8]} 35... Kf7 {[%clk 0:00:36]} 36.
Ree2 {[%clk 0:01:38.1]} 36... Rd1 {[%clk 0:00:33.8]} 37. Rcd2 {[%clk 0:01:37]}
37... Ra1 {[%clk 0:00:34.5]} 38. a3 {[%clk 0:01:33.4]} 38... a5 {[%clk
0:00:34.5]} 39. h4 {[%clk 0:01:33.7]} 39... a4 {[%clk 0:00:35.2]} 40. h5 {[%clk
0:01:33.9]} 40... Bb6 {[%clk 0:00:28.3]} 41. Nd4 {[%clk 0:01:34.5]} 41... Rd7
{[%clk 0:00:26]} 42. Nb5 {[%clk 0:01:28.6]} 42... Rg1+ {[%clk 0:00:22.4]} 43.
Kh2 {[%clk 0:01:28.9]} 43... Re7 {[%clk 0:00:21.6]} 44. Nd6+ {[%clk 0:01:26]}
44... Kg8 {[%clk 0:00:20]} 45. Nc8 {[%clk 0:01:26.9]} 45... Rc7 {[%clk
0:00:14.6]} 46. Nxb6 {[%clk 0:01:27.4]} 46... Rb1 {[%clk 0:00:15.3]} 1-0

[Event "*** Titled Tuesday Blitz"]
[Site "Chess.com"]
[Date "2018.12.04"]
[Round "3"]
[White "kirillgenius"]
[Black "WPWPWP-2015"]
[Result "0-1"]
[WhiteElo "2155"]
[BlackElo "2280"]
[TimeControl "180+2"]
[EndTime "13:36:42 PST"]
[Termination "WPWPWP-2015 won on time"]

1. e4 {[%clk 0:02:56]} 1... e5 {[%clk 0:02:59.4]} 2. Nc3 {[%clk 0:02:56.5]} 2...
Nf6 {[%clk 0:02:58.3]} 3. Bc4 {[%clk 0:02:56.9]} 3... Nc6 {[%clk 0:02:55.5]} 4.
d3 {[%clk 0:02:56.6]} 4... Be7 {[%clk 0:02:54]} 5. f4 {[%clk 0:02:55.3]} 5... d6
{[%clk 0:02:54.2]} 6. Nf3 {[%clk 0:02:55.2]} 6... O-O {[%clk 0:02:54.4]} 7. f5
{[%clk 0:02:38.1]} 7... Na5 {[%clk 0:02:50.3]} 8. Qe2 {[%clk 0:02:31.2]} 8... c6
{[%clk 0:02:42.8]} 9. Bb3 {[%clk 0:02:28.5]} 9... b5 {[%clk 0:02:38.3]} 10. g4
{[%clk 0:02:07.1]} 10... b4 {[%clk 0:02:35.8]} 11. Nd1 {[%clk 0:02:02.1]} 11...
Nxb3 {[%clk 0:02:29.4]} 12. axb3 {[%clk 0:02:00.8]} 12... Nxg4 {[%clk
0:02:26.6]} 13. Rg1 {[%clk 0:01:59]} 13... Nf6 {[%clk 0:02:01.3]} 14. Bh6 {[%clk
0:01:54.9]} 14... g6 {[%clk 0:02:00.7]} 15. Bxf8 {[%clk 0:01:54.9]} 15... Qxf8
{[%clk 0:01:59.6]} 16. Ne3 {[%clk 0:01:48.5]} 16... a5 {[%clk 0:01:52.3]} 17.
O-O-O {[%clk 0:01:38.2]} 17... a4 {[%clk 0:01:52.5]} 18. bxa4 {[%clk 0:01:40.1]}
18... Rxa4 {[%clk 0:01:52.1]} 19. b3 {[%clk 0:01:38.8]} 19... Ra7 {[%clk
0:01:31.8]} 20. Kb2 {[%clk 0:01:37.8]} 20... d5 {[%clk 0:01:28.2]} 21. Nd2
{[%clk 0:01:01.4]} 21... Bc5 {[%clk 0:01:27.1]} 22. Rb1 {[%clk 0:00:19.6]} 22...
Qh6 {[%clk 0:01:16.4]} 23. Ng4 {[%clk 0:00:09]} 23... Nxg4 {[%clk 0:01:00.8]}
24. Rxg4 {[%clk 0:00:10.9]} 24... Be3 {[%clk 0:00:51.9]} 25. Rg2 {[%clk
0:00:08.2]} 25... Ba6 {[%clk 0:00:35.7]} 26. fxg6 {[%clk 0:00:07.8]} 26... hxg6
{[%clk 0:00:35.9]} 27. exd5 {[%clk 0:00:07.9]} 27... cxd5 {[%clk 0:00:35.8]} 0-1

[Event "*** Titled Tuesday Blitz"]
[Site "Chess.com"]
[Date "2018.12.04"]
[Round "3"]
[White "PowerThinking2650"]
[Black "StoreySniper"]
[Result "0-1"]
[WhiteElo "2254"]
[BlackElo "2403"]
[TimeControl "180+2"]
[EndTime "13:36:50 PST"]
[Termination "StoreySniper won by resignation"]

1. e4 {[%clk 0:03:00.6]} 1... g6 {[%clk 0:03:00.7]} 2. d4 {[%clk 0:02:57.6]}
2... Bg7 {[%clk 0:03:02.6]} 3. c4 {[%clk 0:02:56.5]} 3... c5 {[%clk 0:03:03.5]}
4. Ne2 {[%clk 0:02:44.7]} 4... Qa5+ {[%clk 0:02:57.7]} 5. Nbc3 {[%clk
0:02:44.9]} 5... Nf6 {[%clk 0:02:57.6]} 6. f3 {[%clk 0:02:31.5]} 6... d6 {[%clk
0:02:54.8]} 7. Be3 {[%clk 0:02:25.4]} 7... O-O {[%clk 0:02:54.6]} 8. d5 {[%clk
0:02:25.2]} 8... a6 {[%clk 0:02:46.3]} 9. Ng3 {[%clk 0:02:21.8]} 9... h5 {[%clk
0:02:39.9]} 10. Be2 {[%clk 0:02:18.8]} 10... h4 {[%clk 0:02:40.4]} 11. Nf1
{[%clk 0:02:19.2]} 11... b5 {[%clk 0:02:34.1]} 12. Nd2 {[%clk 0:02:07.2]} 12...
b4 {[%clk 0:02:23.1]} 13. Na4 {[%clk 0:02:01.4]} 13... Bd7 {[%clk 0:02:14.4]}
14. b3 {[%clk 0:02:02.5]} 14... Bxa4 {[%clk 0:02:10.5]} 15. bxa4 {[%clk
0:02:03.5]} 15... Nbd7 {[%clk 0:02:11.6]} 16. Bd3 {[%clk 0:01:42.2]} 16... Nh5
{[%clk 0:02:05.7]} 17. Rb1 {[%clk 0:01:41.5]} 17... Bd4 {[%clk 0:01:49.7]} 18.
Nb3 {[%clk 0:01:10.9]} 18... Bc3+ {[%clk 0:01:49.6]} 19. Nd2 {[%clk 0:01:01.3]}
19... Ne5 {[%clk 0:01:47]} 20. Be2 {[%clk 0:00:59.4]} 20... f5 {[%clk
0:01:36.4]} 21. exf5 {[%clk 0:00:52.7]} 21... Rxf5 {[%clk 0:01:22.3]} 22. O-O
{[%clk 0:00:42.6]} 22... Raf8 {[%clk 0:01:21.1]} 23. Ne4 {[%clk 0:00:32]} 23...
Nf4 {[%clk 0:01:15.9]} 24. Bxf4 {[%clk 0:00:26]} 24... Rxf4 {[%clk 0:01:16.5]}
25. Nxc3 {[%clk 0:00:21.1]} 25... bxc3 {[%clk 0:01:15.1]} 26. Qc2 {[%clk
0:00:21]} 26... Rd4 {[%clk 0:01:11.4]} 27. Rfd1 {[%clk 0:00:18.5]} 27... Rff4
{[%clk 0:01:04.7]} 28. Rb7 {[%clk 0:00:16.1]} 28... Rxd1+ {[%clk 0:01:04.3]} 29.
Qxd1 {[%clk 0:00:17]} 29... Rd4 {[%clk 0:00:52.2]} 30. Qc1 {[%clk 0:00:17.5]}
30... Rd2 {[%clk 0:00:46.7]} 31. Rxe7 {[%clk 0:00:17.5]} 31... c2 {[%clk
0:00:43.2]} 32. Kf1 {[%clk 0:00:13]} 32... Nd3 {[%clk 0:00:28.7]} 33. Bxd3
{[%clk 0:00:10.8]} 33... Rd1+ {[%clk 0:00:29.9]} 0-1

[Event "*** Titled Tuesday Blitz"]
[Site "Chess.com"]
[Date "2018.12.04"]
[Round "3"]
[White "Quiet_Desperation"]
[Black "chesstatour"]
[Result "0-1"]
[WhiteElo "2142"]
[BlackElo "2092"]
[TimeControl "180+2"]
[EndTime "13:36:57 PST"]
[Termination "chesstatour won by resignation"]

1. e4 {[%clk 0:03:01.9]} 1... c6 {[%clk 0:02:59.9]} 2. Nc3 {[%clk 0:03:02.3]}
2... d5 {[%clk 0:03:01.8]} 3. Nf3 {[%clk 0:03:03.6]} 3... dxe4 {[%clk
0:03:02.4]} 4. Nxe4 {[%clk 0:03:05.5]} 4... Bf5 {[%clk 0:03:03.2]} 5. Ng3 {[%clk
0:03:05.2]} 5... Bg6 {[%clk 0:03:03.7]} 6. Ne5 {[%clk 0:03:04.3]} 6... Nd7
{[%clk 0:02:59.6]} 7. Nxg6 {[%clk 0:03:05.1]} 7... hxg6 {[%clk 0:03:00.4]} 8.
Bc4 {[%clk 0:03:06.6]} 8... e6 {[%clk 0:03:01.5]} 9. d4 {[%clk 0:03:07.7]} 9...
Ngf6 {[%clk 0:03:02.3]} 10. Be3 {[%clk 0:03:08.5]} 10... Bd6 {[%clk 0:03:02.8]}
11. Qe2 {[%clk 0:03:09]} 11... Qc7 {[%clk 0:02:34.6]} 12. O-O-O {[%clk
0:03:08.6]} 12... O-O-O {[%clk 0:02:28.9]} 13. Kb1 {[%clk 0:03:09.9]} 13... Kb8
{[%clk 0:02:29.3]} 14. Bd3 {[%clk 0:03:10.4]} 14... Nd5 {[%clk 0:02:26.8]} 15.
c4 {[%clk 0:03:10.8]} 15... Nxe3 {[%clk 0:02:27.5]} 16. Qxe3 {[%clk 0:03:10.5]}
16... Bf4 {[%clk 0:02:05.9]} 17. Qf3 {[%clk 0:03:07.9]} 17... Nf6 {[%clk
0:01:43.1]} 18. Bc2 {[%clk 0:03:07.5]} 18... Bxg3 {[%clk 0:01:07.5]} 19. hxg3
{[%clk 0:03:06.6]} 19... g5 {[%clk 0:01:03.9]} 20. Rhe1 {[%clk 0:03:03.5]} 20...
Rd7 {[%clk 0:00:58.3]} 21. Qe3 {[%clk 0:03:00.6]} 21... g4 {[%clk 0:00:22.6]}
22. Qg5 {[%clk 0:02:57]} 22... Rg8 {[%clk 0:00:22.8]} 23. Rh1 {[%clk 0:02:49.8]}
23... Qd8 {[%clk 0:00:19.2]} 24. Qf4+ {[%clk 0:02:46.4]} 24... Qc7 {[%clk
0:00:17.9]} 25. Qg5 {[%clk 0:02:44]} 25... Qd8 {[%clk 0:00:18.7]} 26. Qe3 {[%clk
0:02:41.9]} 26... Re8 {[%clk 0:00:16.7]} 27. Be4 {[%clk 0:02:35.7]} 27... Qc7
{[%clk 0:00:10.2]} 28. Bc2 {[%clk 0:02:33.3]} 28... Red8 {[%clk 0:00:10.7]} 29.
a3 {[%clk 0:02:19.1]} 29... Qb6 {[%clk 0:00:10.3]} 30. c5 {[%clk 0:02:17.7]}
30... Qc7 {[%clk 0:00:10]} 31. Bb3 {[%clk 0:02:15.5]} 31... a6 {[%clk
0:00:07.5]} 32. Rhe1 {[%clk 0:01:58.9]} 32... Ka8 {[%clk 0:00:06.3]} 33. Qg5
{[%clk 0:01:57.7]} 33... Rg8 {[%clk 0:00:06.8]} 34. Rh1 {[%clk 0:01:52.2]} 34...
Qd8 {[%clk 0:00:07.6]} 35. Qe3 {[%clk 0:01:52.6]} 35... Kb8 {[%clk 0:00:06.7]}
36. f3 {[%clk 0:01:52.1]} 36... gxf3 {[%clk 0:00:06.9]} 37. gxf3 {[%clk
0:01:53.5]} 37... Nd5 {[%clk 0:00:07.8]} 38. Bxd5 {[%clk 0:01:53.2]} 38... Rxd5
{[%clk 0:00:08.4]} 39. Qf4+ {[%clk 0:01:46.4]} 39... Qc7 {[%clk 0:00:08.6]} 40.
Qe4 {[%clk 0:01:46.3]} 40... Qd8 {[%clk 0:00:08.6]} 41. f4 {[%clk 0:01:40.4]}
41... g6 {[%clk 0:00:09.4]} 42. Rh7 {[%clk 0:01:39]} 42... Qd7 {[%clk 0:00:09]}
43. g4 {[%clk 0:01:36.1]} 43... Rd8 {[%clk 0:00:09.2]} 44. Ka2 {[%clk 0:01:18]}
44... Rxd4 {[%clk 0:00:09.2]} 45. Qe5+ {[%clk 0:01:19.2]} 45... Ka8 {[%clk
0:00:09.4]} 46. Rxf7 {[%clk 0:01:12.2]} 46... Qxf7 {[%clk 0:00:08.7]} 47. Rxd4
{[%clk 0:01:12.8]} 47... Rxd4 {[%clk 0:00:09.6]} 48. Qxd4 {[%clk 0:01:14.4]}
48... e5+ {[%clk 0:00:10.8]} 0-1

[Event "*** Titled Tuesday Blitz"]
[Site "Chess.com"]
[Date "2018.12.04"]
[Round "3"]
[White "MFguimaraes"]
[Black "TheBigBadChessDad"]
[Result "1/2-1/2"]
[WhiteElo "2361"]
[BlackElo "2281"]
[TimeControl "180+2"]
[EndTime "13:36:58 PST"]
[Termination "Game drawn by agreement"]

1. e4 {[%clk 0:02:34.5]} 1... e5 {[%clk 0:03:00.4]} 2. Nf3 {[%clk 0:02:32.4]}
2... Nc6 {[%clk 0:03:00.9]} 3. Bc4 {[%clk 0:02:33.6]} 3... Bc5 {[%clk
0:03:01.1]} 4. b4 {[%clk 0:02:33.9]} 4... Bxb4 {[%clk 0:03:01.9]} 5. c3 {[%clk
0:02:35.2]} 5... Be7 {[%clk 0:03:02.6]} 6. d4 {[%clk 0:02:35.2]} 6... Na5 {[%clk
0:03:03.1]} 7. Nxe5 {[%clk 0:02:35.1]} 7... Nxc4 {[%clk 0:03:02.7]} 8. Nxc4
{[%clk 0:02:36.6]} 8... d5 {[%clk 0:03:03.2]} 9. exd5 {[%clk 0:02:37.5]} 9...
Qxd5 {[%clk 0:03:03.8]} 10. Ne3 {[%clk 0:02:38.3]} 10... Qd8 {[%clk 0:02:55.6]}
11. O-O {[%clk 0:02:39.2]} 11... Nf6 {[%clk 0:02:54.5]} 12. c4 {[%clk
0:02:40.5]} 12... O-O {[%clk 0:02:49.3]} 13. Nc3 {[%clk 0:02:40.9]} 13... Re8
{[%clk 0:02:42.3]} 14. Re1 {[%clk 0:02:28.7]} 14... c6 {[%clk 0:02:41.5]} 15.
Rb1 {[%clk 0:02:27.9]} 15... h6 {[%clk 0:02:36.9]} 16. d5 {[%clk 0:02:23.7]}
16... c5 {[%clk 0:02:15.6]} 17. Qf3 {[%clk 0:02:13.2]} 17... Bd6 {[%clk
0:01:55.7]} 18. Nb5 {[%clk 0:02:09.5]} 18... Ne4 {[%clk 0:01:41.5]} 19. Nxd6
{[%clk 0:01:56.6]} 19... Nxd6 {[%clk 0:01:31.1]} 20. Bb2 {[%clk 0:01:54.1]}
20... b6 {[%clk 0:00:49]} 21. Qg3 {[%clk 0:01:41.5]} 21... f6 {[%clk 0:00:49.6]}
22. Ng4 {[%clk 0:01:28.1]} 22... Bxg4 {[%clk 0:00:42.1]} 23. Qxg4 {[%clk
0:01:28.6]} 23... Qc8 {[%clk 0:00:21.9]} 24. Rxe8+ {[%clk 0:01:16.8]} 24... Nxe8
{[%clk 0:00:20.3]} 25. Qg6 {[%clk 0:01:13.8]} 25... Qd7 {[%clk 0:00:16.5]} 26.
Re1 {[%clk 0:01:12.3]} 26... Qf7 {[%clk 0:00:18]} 27. Qg3 {[%clk 0:01:07.1]}
27... Rd8 {[%clk 0:00:08.7]} 28. Re6 {[%clk 0:01:04.9]} 28... Kh7 {[%clk
0:00:07.2]} 29. Qe3 {[%clk 0:01:00.5]} 29... Nd6 {[%clk 0:00:07.1]} 30. g4
{[%clk 0:00:57.7]} 30... Qg6 {[%clk 0:00:08.2]} 1/2-1/2

[Event "*** Titled Tuesday Blitz"]
[Site "Chess.com"]
[Date "2018.12.04"]
[Round "3"]
[White "penguingm1"]
[Black "PchelkinVK"]
[Result "0-1"]
[WhiteElo "2764"]
[BlackElo "2585"]
[TimeControl "180+2"]
[EndTime "13:37:02 PST"]
[Termination "PchelkinVK won by resignation"]

1. d4 {[%clk 0:03:01.9]} 1... e5 {[%clk 0:02:50.4]} 2. dxe5 {[%clk 0:03:01.1]}
2... d6 {[%clk 0:02:51.3]} 3. exd6 {[%clk 0:02:57.9]} 3... Bxd6 {[%clk
0:02:51.7]} 4. g3 {[%clk 0:02:59.2]} 4... Nc6 {[%clk 0:02:52.3]} 5. Bg2 {[%clk
0:03:00.5]} 5... Qe7 {[%clk 0:02:51.9]} 6. Nh3 {[%clk 0:03:01.4]} 6... Bf5
{[%clk 0:02:44.3]} 7. O-O {[%clk 0:02:56.7]} 7... O-O-O {[%clk 0:02:44.4]} 8.
Nd2 {[%clk 0:02:54.5]} 8... h5 {[%clk 0:02:27.9]} 9. e4 {[%clk 0:02:50.4]} 9...
Bg4 {[%clk 0:02:27.5]} 10. f3 {[%clk 0:02:50.4]} 10... Be6 {[%clk 0:02:05.1]}
11. Nf2 {[%clk 0:02:36.1]} 11... h4 {[%clk 0:02:05.7]} 12. f4 {[%clk 0:02:33.2]}
12... hxg3 {[%clk 0:02:06]} 13. hxg3 {[%clk 0:02:35.1]} 13... g5 {[%clk
0:01:55.6]} 14. f5 {[%clk 0:02:32]} 14... Bxg3 {[%clk 0:01:54.9]} 15. Qg4 {[%clk
0:02:01.8]} 15... Bh2+ {[%clk 0:01:48.5]} 16. Kh1 {[%clk 0:02:02.8]} 16... Ne5
{[%clk 0:01:46.5]} 17. Qe2 {[%clk 0:01:59.2]} 17... g4 {[%clk 0:01:19.8]} 18.
fxe6 {[%clk 0:00:57.8]} 18... Nf6 {[%clk 0:00:52.7]} 19. Re1 {[%clk 0:00:47.8]}
19... Nh5 {[%clk 0:00:43]} 20. Nf1 {[%clk 0:00:48.8]} 20... fxe6 {[%clk
0:00:30.5]} 21. Be3 {[%clk 0:00:09]} 21... Qh4 {[%clk 0:00:29]} 22. Red1 {[%clk
0:00:09.7]} 22... Rdf8 {[%clk 0:00:21.5]} 23. Rd2 {[%clk 0:00:09.7]} 23... Ng3+
{[%clk 0:00:19.3]} 24. Nxg3 {[%clk 0:00:10.8]} 24... Bxg3+ {[%clk 0:00:20.3]}
25. Kg1 {[%clk 0:00:12.4]} 25... Nf3+ {[%clk 0:00:21.8]} 26. Kf1 {[%clk
0:00:11.1]} 26... Nxd2+ {[%clk 0:00:21.9]} 27. Qxd2 {[%clk 0:00:13]} 27... Bxf2
{[%clk 0:00:22.6]} 28. Bxf2 {[%clk 0:00:11.6]} 28... g3 {[%clk 0:00:23.5]} 29.
Ke1 {[%clk 0:00:02.7]} 29... Rxf2 {[%clk 0:00:23.5]} 30. Qd4 {[%clk 0:00:04]}
30... Rd8 {[%clk 0:00:20.3]} 31. Qc4 {[%clk 0:00:02.9]} 31... Rxg2 {[%clk
0:00:18.3]} 32. Qxc7+ {[%clk 0:00:04.1]} 0-1